fUSD/lending_fUSD_20240503
["ID","MTS","AMOUNT","RATE_DAILY","PERIOD"]
[325338240,1714743045951,-3343.6,0.00043,60]
[325338242,1714743045962,-1243.700005,0.00043,60]
[325338244,1714743045974,-29840.07435929,0.00043,60]
[325338246,1714743045984,-165.0,0.00043,4]
[325338248,1714743045995,-155.0,0.00043,2]
[325338250,1714743046005,-179.73027073,0.00043,2]
[325338252,1714743046016,-563.2596256,0.00043,120]
[325338254,1714743046028,-443.481164,0.00043,15]
[325338256,1714743046039,-4123.24250626,0.00043,4]
[325338258,1714743046051,-1036.73785114,0.00043,4]
[325338260,1714743046063,-745.188162,0.00043,4]
[325338262,1714743046074,-2212.20569301,0.00043,4]
[325338263,1714743046085,-288.72057434,0.00043,4]
[325338267,1714743046097,-1041.0025071,0.00043,4]
[325338270,1714743046108,-500.0,0.00043,5]
[325338272,1714743046120,-167.56442339,0.00043,30]
[325338276,1714743046131,-215.1575341,0.00043,30]
[325338279,1714743046143,-690.67262483,0.00043,10]
[325338282,1714743046155,-3359.4069857,0.00043,4]
[325338285,1714743046166,-6648.57512551,0.00043,2]
[325338354,1714743046878,-23553.40527643,0.00043,2]
[325338356,1714743046887,-293.29822192,0.00043,4]
[325338358,1714743046897,-732.49357124,0.00043,30]
[325338360,1714743046906,-305.02333309,0.00043,2]
[325338362,1714743046916,-399.55332141,0.00043,4]
[325338364,1714743046930,-544.96414974,0.00043,80]
[325338366,1714743046940,-2110.0,0.00043,15]
[325338368,1714743046950,-500.0,0.00043,30]
[325338370,1714743046959,-500.0,0.00043,30]
[325338371,1714743046969,-500.0,0.00043,30]
[325338373,1714743046979,-439.72196404,0.00043,30]
[325338374,1714743046988,-500.0,0.00043,30]
[325338375,1714743046997,-500.0,0.00043,30]
[325338376,1714743047007,-500.0,0.00043,30]
[325338377,1714743047016,-500.0,0.00043,30]
[325338378,1714743047026,-500.0,0.00043,30]
[325338379,1714743047037,-500.0,0.00043,30]
[325338380,1714743047047,-500.0,0.00043,30]
[325338381,1714743047057,-500.0,0.00043,30]
[325338382,1714743047071,-500.0,0.00043,30]
[325338383,1714743047082,-500.0,0.00043,30]
[325338384,1714743047092,-500.0,0.00043,30]
[325338385,1714743047102,-500.0,0.00043,30]
[325338386,1714743047112,-500.0,0.00043,30]
[325338387,1714743047123,-500.0,0.00043,30]
[325338388,1714743047133,-500.0,0.00043,30]
[325338389,1714743047143,-500.0,0.00043,30]
[325338390,1714743047152,-500.0,0.00043,30]
[325338391,1714743047163,-500.0,0.00043,30]
[325338392,1714743047175,-500.0,0.00043,30]
[325338393,1714743047192,-500.0,0.00043,30]
[325338394,1714743047201,-500.0,0.00043,30]
[325338395,1714743047213,-500.0,0.00043,30]
[325338396,1714743047224,-500.0,0.00043,30]
[325338397,1714743047233,-500.0,0.00043,30]
[325338398,1714743047243,-500.0,0.00043,30]
[325338399,1714743047252,-500.0,0.00043,30]
[325338400,1714743047265,-500.0,0.00043,30]
[325338401,1714743047275,-500.0,0.00043,30]
[325338402,1714743047285,-500.0,0.00043,30]
[325338403,1714743047294,-500.0,0.00043,30]
[325338404,1714743047304,-500.0,0.00043,30]
[325338405,1714743047313,-500.0,0.00043,30]
[325338406,1714743047322,-500.0,0.00043,30]
[325338407,1714743047330,-500.0,0.00043,30]
[325338408,1714743047339,-500.0,0.00043,30]
[325338409,1714743047349,-500.0,0.00043,30]
[325338410,1714743047358,-500.0,0.00043,30]
[325338411,1714743047367,-500.0,0.00043,30]
[325338412,1714743047377,-480.79902893,0.00043,30]
[325338413,1714743047387,-500.0,0.00043,30]
[325338414,1714743047396,-500.0,0.00043,30]
[325338415,1714743047406,-500.0,0.00043,30]
[325338416,1714743047415,-500.0,0.00043,30]
[325338417,1714743047429,-500.0,0.00043,30]
[325338418,1714743047438,-500.0,0.00043,30]
[325338419,1714743047447,-500.0,0.00043,30]
[325338420,1714743047456,-500.0,0.00043,30]
[325338421,1714743047465,-500.0,0.00043,30]
[325338422,1714743047475,-500.0,0.00043,30]
[325338423,1714743047483,-500.0,0.00043,30]
[325338424,1714743047494,-500.0,0.00043,30]
[325338425,1714743047503,-500.0,0.00043,30]
[325338426,1714743047512,-500.0,0.00043,30]
[325338427,1714743047522,-500.0,0.00043,30]
[325338428,1714743047531,-500.0,0.00043,30]
[325338429,1714743047540,-500.0,0.00043,30]
[325338430,1714743047550,-500.0,0.00043,30]
[325338431,1714743047560,-500.0,0.00043,30]
[325338432,1714743047569,-500.0,0.00043,30]
[325338433,1714743047579,-500.0,0.00043,30]
[325338434,1714743047588,-500.0,0.00043,30]
[325338435,1714743047597,-576.76144144,0.00043,30]
[325338436,1714743047606,-158.74,0.00043,7]
[325338437,1714743047615,-431.57,0.00043007,2]
[325338438,1714743047627,-178.97,0.00043014,120]
[325338439,1714743047637,-200.0,0.00043048,30]
[325338440,1714743047647,-2042.53,0.00043068,25]
[325338441,1714743047656,-150.0,0.00043142,60]
[325338442,1714743047665,-600.0,0.00043164,30]
[325338443,1714743047679,-10000.0,0.000432,12]
[325338444,1714743047688,-161.07,0.000432,7]
[325338445,1714743047697,-186.44891994,0.000432,60]
[325338446,1714743047707,-2042.53,0.00043205,26]
[325338447,1714743047716,-760.06,0.0004326,81]
[325338448,1714743047726,-667.0,0.00043309,30]
[325338449,1714743047735,-150.0,0.0004332,15]
[325338450,1714743047744,-150.0,0.00043334,120]
[325338451,1714743047753,-2042.53,0.00043342,27]
[325338452,1714743047764,-10000.0,0.000434,12]
[325338453,1714743047774,-150.0,0.000434,33]
[325338454,1714743047783,-500.0,0.00043433,2]
[325338455,1714743047792,-500.0,0.00043433,2]
[325338456,1714743047802,-500.0,0.00043444,2]
[325338457,1714743047811,-2042.53,0.00043479,28]
[325338458,1714743047821,-260.0,0.000435,30]
[325338459,1714743047830,-2110.0,0.000435,15]
[325338460,1714743047839,-760.06,0.00043534,83]
[325338461,1714743047849,-2042.53,0.00043616,29]
[325338462,1714743047859,-500.0,0.00043645,30]
[325338463,1714743047869,-3838.79,0.00043653,98]
[325338464,1714743047879,-166.28,0.000437,7]
[325338465,1714743047888,-161.07,0.000437,7]
[325338466,1714743047898,-667.0,0.00043734,30]
[325338467,1714743047907,-299.59006456,0.0004375,120]
[325338468,1714743047916,-2042.53,0.00043753,30]
[325338469,1714743047928,-400.0,0.0004377,3]
[325338470,1714743047937,-10000.0,0.000438,120]
[325338471,1714743047946,-459.39040887,0.000438,30]
[325338472,1714743047955,-150.0,0.000438,30]
[325338473,1714743047964,-849.48526126,0.00043808,3]
[325338474,1714743047974,-760.06,0.00043808,85]
[325338475,1714743047984,-150.0,0.00043808,30]
[325338477,1714743047994,-150.0,0.00043808,30]
[325338479,1714743048003,-150.0,0.00043808,30]
[325338480,1714743048013,-150.0,0.00043808,30]
[325338482,1714743048023,-519.3329498,0.00043835,30]
[325338484,1714743048032,-1000.0,0.00043835,60]
[325338485,1714743048041,-500.0,0.00043835,60]
[325338487,1714743048051,-1000.0,0.00043835,60]
[325338489,1714743048060,-500.0,0.00043835,30]
[325338491,1714743048069,-500.0,0.00043835,30]
[325338492,1714743048079,-500.64941912,0.00043835,30]
[325338493,1714743048089,-500.0,0.00043835,30]
[325338494,1714743048099,-500.0,0.00043835,30]
[325338495,1714743048108,-500.0,0.00043835,30]
[325338496,1714743048118,-500.0,0.00043835,30]
[325338497,1714743048127,-500.0,0.00043835,30]
[325338498,1714743048137,-176.7348253,0.00043835,30]
[325338499,1714743048146,-454.29977165,0.00043835,30]
[325338500,1714743048156,-500.0,0.00043835,30]
[325338501,1714743048165,-500.0,0.00043835,30]
[325338502,1714743048175,-500.0,0.00043835,30]
[325338503,1714743048183,-500.0,0.00043835,30]
[325338504,1714743048192,-500.0,0.00043835,30]
[325338505,1714743048201,-500.21643765,0.00043835,30]
[325338506,1714743048215,-500.0,0.00043835,30]
[325338507,1714743048226,-500.0,0.00043835,30]
[325338508,1714743048236,-500.0,0.00043835,30]
[325338509,1714743048246,-500.0,0.00043835,30]
[325338510,1714743048255,-500.0,0.00043835,30]
[325338511,1714743048269,-500.0,0.00043835,30]
[325338512,1714743048279,-500.0,0.00043835,30]
[325338513,1714743048289,-543.46924674,0.00043835,30]
[325338515,1714743048299,-500.0,0.00043835,30]
[325338516,1714743048309,-500.0,0.00043835,30]
[325338517,1714743048318,-500.0,0.00043835,30]
[325338518,1714743048327,-517.93280925,0.00043835,30]
[325338519,1714743048336,-500.0,0.00043835,30]
[325338520,1714743048345,-500.0,0.00043835,30]
[325338521,1714743048355,-500.0,0.00043835,30]
[325338522,1714743048365,-222.6671629,0.00043835,30]
[325338523,1714743048375,-500.0,0.00043835,30]
[325338524,1714743048385,-500.0,0.00043835,30]
[325338525,1714743048394,-500.0,0.00043835,30]
[325338527,1714743048403,-500.61712686,0.00043835,30]
[325338529,1714743048413,-500.0,0.00043835,30]
[325338531,1714743048422,-500.0,0.00043835,30]
[325338533,1714743048433,-500.0,0.00043835,30]
[325338535,1714743048442,-500.0,0.00043835,30]
[325338536,1714743048451,-502.40392144,0.00043835,30]
[325338538,1714743048461,-500.0,0.00043835,30]
[325338540,1714743048470,-505.33496601,0.00043835,30]
[325338543,1714743048480,-500.0,0.00043835,30]
[325338545,1714743048489,-500.0,0.00043835,30]
[325338546,1714743048499,-500.0,0.00043835,30]
[325338548,1714743048508,-500.0,0.00043835,30]
[325338550,1714743048518,-500.0,0.00043835,30]
[325338552,1714743048527,-500.0,0.00043835,30]
[325338554,1714743048536,-500.0,0.00043835,30]
[325338556,1714743048545,-856.98,0.00043835,30]
[325338558,1714743048554,-500.0,0.00043835,30]
[325338560,1714743048564,-500.0,0.00043835,30]
[325338562,1714743048573,-500.0,0.00043835,30]
[325338564,1714743048582,-756.44,0.00043835,30]
[325338566,1714743048591,-500.0,0.00043835,30]
[325338568,1714743048600,-500.0,0.00043835,30]
[325338569,1714743048609,-500.0,0.00043835,30]
[325338570,1714743048619,-2078.18,0.00043835,30]
[325338571,1714743048628,-500.0,0.00043835,30]
[325338572,1714743048637,-500.0,0.00043835,30]
[325338573,1714743048647,-705.97,0.00043835,30]
[325338574,1714743048656,-500.0,0.00043835,30]
[325338575,1714743048666,-639.33654191,0.00043835,30]
[325338576,1714743048675,-500.0,0.00043835,30]
[325338577,1714743048686,-500.0,0.00043835,30]
[325338578,1714743048696,-500.0,0.00043835,30]
[325338579,1714743048705,-1654.75,0.00043835,30]
[325338580,1714743048714,-500.0,0.00043835,30]
[325338581,1714743048723,-500.0,0.00043835,30]
[325338583,1714743048732,-500.0,0.00043835,30]
[325338585,1714743048741,-1295.02,0.00043835,30]
[325338587,1714743048750,-500.0,0.00043835,30]
[325338589,1714743048759,-500.0,0.00043835,30]
[325338591,1714743048768,-500.0,0.00043835,30]
[325338593,1714743048777,-1516.68,0.00043835,30]
[325338595,1714743048787,-500.0,0.00043835,30]
[325338597,1714743048797,-500.0,0.00043835,30]
[325338599,1714743048806,-500.0,0.00043835,30]
[325338601,1714743048815,-500.0,0.00043835,30]
[325338603,1714743048825,-699.44,0.00043835,30]
[325338635,1714743049110,-500.0,0.00043835,30]
[325338637,1714743049120,-1832.06,0.00043835,30]
[325338639,1714743049130,-500.0,0.00043835,30]
[325338641,1714743049139,-500.0,0.00043835,30]
[325338643,1714743049148,-2306.4,0.00043835,30]
[325338645,1714743049158,-500.0,0.00043835,30]
[325338647,1714743049167,-1907.84,0.00043835,30]
[325338649,1714743049177,-500.0,0.00043835,30]
[325338651,1714743049187,-500.0,0.00043835,30]
[325338653,1714743049196,-2214.85,0.00043835,30]
[325338655,1714743049207,-500.0,0.00043835,30]
[325338657,1714743049222,-500.0,0.00043835,30]
[325338659,1714743049231,-1402.57,0.00043835,30]
[325338661,1714743049240,-500.0,0.00043835,30]
[325338663,1714743049251,-500.0,0.00043835,30]
[325338665,1714743049261,-500.0,0.00043835,30]
[325338667,1714743049270,-500.0,0.00043835,30]
[325338669,1714743049279,-500.0,0.00043835,30]
[325338671,1714743049288,-500.0,0.00043835,30]
[325338672,1714743049298,-1168.23,0.00043835,30]
[325338675,1714743049307,-500.0,0.00043835,30]
[325338677,1714743049316,-500.0,0.00043835,30]
[325338679,1714743049326,-750.7,0.00043835,30]
[325338681,1714743049336,-500.0,0.00043835,30]
[325338683,1714743049345,-456.2605919,0.00043835,30]
[325338686,1714743049370,-43.7394081,0.00043835,30]
[325338688,1714743049380,-500.0,0.00043835,30]
[325338690,1714743049390,-500.0,0.00043835,30]
[325338692,1714743049400,-185.95218519,0.00043835,30]
[325338694,1714743049411,-314.04781481,0.00043835,30]
[325338696,1714743049421,-500.0,0.00043835,30]
[325338698,1714743049432,-320.27218513,0.00043835,30]
[325338701,1714743049445,-179.72781487,0.00043835,30]
[325338703,1714743049454,-732.72218513,0.00043835,30]
[325338718,1714743049605,-173.51678104,0.00027967,2]
[325338720,1714743049614,-592.76781487,0.00043835,30]
[325338722,1714743049623,-500.0,0.00043835,30]
[325338724,1714743049633,-500.0,0.00043835,30]
[325338726,1714743049642,-500.0,0.00043835,30]
[325338728,1714743049651,-639.13,0.00043835,30]
[325338730,1714743049660,-500.0,0.00043835,30]
[325338732,1714743049669,-500.0,0.00043835,30]
[325338734,1714743049681,-500.0,0.00043835,30]
[325338736,1714743049690,-500.0,0.00043835,30]
[325338737,1714743049700,-199.65012794,0.00043835,30]
[325338739,1714743049709,-505.70508955,0.00043835,30]
[325338741,1714743049718,-761.51,0.00043835,30]
[325338742,1714743049727,-500.0,0.00043835,30]
[325338743,1714743049735,-500.0,0.00043835,30]
[325338744,1714743049745,-500.0,0.00043835,30]
[325338745,1714743049754,-500.0,0.00043835,30]
[325338746,1714743049763,-500.0,0.00043835,30]
[325338747,1714743049772,-500.0,0.00043835,30]
[325338748,1714743049781,-833.09,0.00043835,30]
[325338749,1714743049790,-500.0,0.00043835,30]
[325338750,1714743049799,-400.60998965,0.00043835,30]
[325338751,1714743049808,-500.0,0.00043835,30]
[325338752,1714743049818,-500.0,0.00043835,30]
[325338753,1714743049827,-1192.86,0.00043835,30]
[325338754,1714743049836,-2106.21,0.00043835,30]
[325338755,1714743049846,-500.0,0.00043835,30]
[325338757,1714743049855,-1084.16,0.00043835,30]
[325338759,1714743049864,-281.3407021,0.00043835,30]
[325338762,1714743049879,-218.6592979,0.00043835,30]
[325338764,1714743049888,-500.0,0.00043835,30]
[325338766,1714743049898,-500.0,0.00043835,30]
[325338768,1714743049907,-500.0,0.00043835,30]
[325338770,1714743049917,-600.88063582,0.00043835,30]
[325338977,1714743052238,-173.51678104,0.00027967,2]
[325338978,1714743052248,-173.51678104,0.00027967,2]
[325338980,1714743052259,-173.51678104,0.00027967,2]
[325338982,1714743052268,-173.51678104,0.00027967,2]
[325338983,1714743052278,-173.51678104,0.00027967,2]
[325338985,1714743052289,-173.51678104,0.00027967,2]
[325338986,1714743052298,-173.51678104,0.00027967,2]
[325338988,1714743052309,-173.51678104,0.00027967,2]
[325338990,1714743052318,-173.51678104,0.00027967,2]
[325338991,1714743052328,-173.51678104,0.00027967,2]
[325338993,1714743052337,-98.5031896,0.00027967,2]
[325338995,1714743052350,-75.01359144,0.00027967,2]
[325338996,1714743052359,-576.72697962,0.00027976,2]
[325338998,1714743052368,-602.602,0.00027977,2]
[325338999,1714743052379,-500.0,0.0004,5]
[325339001,1714743052389,-500.0,0.0004,5]
[325339003,1714743052398,-500.0,0.0004,5]
[325339004,1714743052408,-264.1147887,0.00041873,2]
[325339006,1714743052420,-45.72381767,0.00041873,2]
[325339008,1714743052434,-377.70936418,0.00043835,30]
[325339009,1714743052445,-500.0,0.00043835,30]
[325339011,1714743052454,-500.0,0.00043835,30]
[325339013,1714743052464,-1016.97,0.00043835,30]
[325339014,1714743052475,-500.0,0.00043835,30]
[325339016,1714743052485,-500.0,0.00043835,30]
[325339017,1714743052497,-536.40883803,0.00043835,30]
[325339019,1714743052507,-1490.61,0.00043835,30]
[325339021,1714743052518,-500.0,0.00043835,30]
[325339022,1714743052528,-500.0,0.00043835,30]
[325339024,1714743052538,-500.96242891,0.00043835,30]
[325339025,1714743052547,-1777.1,0.00043835,30]
[325339027,1714743052556,-500.0,0.00043835,30]
[325339029,1714743052565,-500.0,0.00043835,31]
[325339031,1714743052576,-500.0,0.00043835,30]
[325339033,1714743052585,-527.6,0.00043835,30]
[325339035,1714743052595,-500.0,0.00043835,32]
[325339037,1714743052604,-500.0,0.00043835,30]
[325339039,1714743052613,-500.0,0.00043835,33]
[325339041,1714743052623,-500.0,0.00043835,34]
[325339042,1714743052632,-500.0,0.00043835,35]
[325339043,1714743052642,-500.0,0.00043835,36]
[325339044,1714743052651,-461.67163077,0.00043835,37]
[325339045,1714743052661,-1041.10011899,0.00043835,30]
[325339046,1714743052746,-500.0,0.0004,5]
[325339047,1714743052756,-41.06988101,0.00043835,30]
[325339048,1714743052766,-501.48041584,0.00043835,30]
[325339049,1714743052776,-188.73971195,0.00043835,30]
[325339050,1714743053326,-337.99028805,0.00043835,30]
[325339051,1714743053336,-500.0,0.00043835,30]
[325339052,1714743053346,-510.98063751,0.00043835,30]
[325339053,1714743053356,-579.7,0.00043835,30]
[325339054,1714743053366,-502.25562164,0.00043835,30]
[325339055,1714743053375,-833.3364823,0.00043835,30]
[325339056,1714743053388,-798.2335177,0.00043835,30]
[325339058,1714743053398,-500.0,0.00043835,30]
[325339060,1714743053407,-351.09062389,0.00043835,30]
[325339062,1714743053419,-150.25547433,0.00043835,30]
[325339064,1714743053431,-129.29079398,0.00043835,30]
[325339066,1714743053443,-818.90005,0.00043835,30]
[325339068,1714743053455,-516.97915602,0.00043835,30]
[325339070,1714743053463,-500.0,0.00043835,30]
[325339072,1714743053473,-724.68,0.00043835,30]
[325339074,1714743053482,-719.06,0.00043835,30]
[325339076,1714743053490,-500.0,0.00043835,30]
[325339078,1714743053502,-500.0,0.00043835,30]
[325339080,1714743053511,-500.0,0.00043835,30]
[325339082,1714743053521,-500.0,0.00043835,30]
[325339084,1714743053530,-754.39,0.00043835,30]
[325339086,1714743053540,-500.0,0.00043835,30]
[325339088,1714743053550,-998.89,0.00043835,30]
[325339090,1714743053559,-500.0,0.00043835,30]
[325339092,1714743053569,-604.63258922,0.00043835,30]
[325339094,1714743053582,-293.27741078,0.00043835,30]
[325339096,1714743053591,-500.0,0.00043835,30]
[325339098,1714743053600,-1447.41,0.00043835,30]
[325339100,1714743053610,-500.0,0.00043835,30]
[325339102,1714743053619,-551.07,0.00043835,30]
[325339104,1714743053629,-1521.37,0.00043835,30]
[325339106,1714743053640,-1039.31,0.00043835,30]
[325339108,1714743053649,-500.0,0.00043835,30]
[325339110,1714743053657,-1621.99,0.00043835,30]
[325339112,1714743053667,-500.0,0.00043835,30]
[325339114,1714743053676,-508.26972359,0.00043835,30]
[325339116,1714743053688,-500.0,0.00043835,30]
[325339118,1714743053699,-500.0,0.00043835,30]
[325339120,1714743053708,-1128.53,0.00043835,30]
[325339122,1714743053717,-500.99372826,0.00043835,30]
[325339124,1714743053727,-500.0,0.00043835,30]
[325339126,1714743053736,-1250.48,0.00043835,30]
[325339128,1714743053746,-500.0,0.00043835,30]
[325339131,1714743053758,-500.0,0.00043835,30]
[325339133,1714743053767,-989.51,0.00043835,30]
[325339135,1714743053777,-500.0,0.00043835,30]
[325339137,1714743053786,-794.6,0.00043835,30]
[325339139,1714743053795,-507.09232762,0.00043835,30]
[325339141,1714743053804,-500.81793719,0.00043835,30]
[325339143,1714743053813,-555.01,0.00043835,30]
[325339145,1714743053822,-571.51062396,0.00043835,30]
[325339146,1714743053830,-500.0,0.00043835,30]
[325339148,1714743053839,-500.0,0.00043835,30]
[325339150,1714743053848,-500.0,0.00043835,30]
[325339152,1714743053857,-500.0,0.00043835,30]
[325339154,1714743053866,-502.16,0.00043835,30]
[325339156,1714743053875,-500.95815472,0.00043835,30]
[325339158,1714743053885,-1509.51,0.00043835,30]
[325339160,1714743053894,-526.76,0.00043835,30]
[325339162,1714743053903,-500.0,0.00043835,30]
[325339165,1714743053913,-1484.85,0.00043835,30]
[325339166,1714743053922,-500.0,0.00043835,30]
[325339169,1714743053935,-500.0,0.00043835,30]
[325339170,1714743053944,-520.1,0.00043835,30]
[325339172,1714743053953,-191.11646278,0.00043835,30]
[325339174,1714743053963,-640.98,0.00043835,30]
[325339176,1714743053972,-1859.15,0.00043835,30]
[325339178,1714743053981,-500.0,0.00043835,30]
[325339180,1714743053990,-500.0,0.00043835,30]
[325339182,1714743054000,-1456.86,0.00043835,30]
[325339184,1714743054009,-509.77,0.00043835,30]
[325339186,1714743054018,-500.0,0.00043835,30]
[325339188,1714743054027,-798.21,0.00043835,30]
[325339190,1714743054037,-500.0,0.00043835,30]
[325339192,1714743054046,-500.0,0.00043835,30]
[325339194,1714743054056,-238.52308485,0.00043835,30]
[325339196,1714743054065,-500.0,0.00043835,30]
[325339198,1714743054075,-500.0,0.00043835,30]
[325339200,1714743054084,-500.0,0.00043835,30]
[325339202,1714743054094,-500.0,0.00043835,30]
[325339204,1714743054103,-500.0,0.00043835,30]
[325339206,1714743054113,-599.78148832,0.00043835,30]
[325339208,1714743054124,-570.78,0.00043835,30]
[325339210,1714743054133,-702.28,0.00043835,30]
[325339212,1714743054142,-500.0,0.00043835,30]
[325339214,1714743054151,-500.0,0.00043835,30]
[325339216,1714743054161,-1421.41,0.00043835,30]
[325339219,1714743054177,-370.33002811,0.00043835,30]
[325339221,1714743054187,-500.0,0.00043835,30]
[325339223,1714743054197,-500.0,0.00043835,30]
[325339225,1714743054206,-500.0,0.00043835,30]
[325339227,1714743054224,-500.0,0.00043835,30]
[325339229,1714743054239,-500.0,0.00043835,30]
[325339231,1714743054249,-934.56,0.00043835,30]
[325339233,1714743054258,-500.0,0.00043835,120]
[325339235,1714743054268,-500.0,0.00043835,30]
[325339237,1714743054278,-500.0,0.00043835,30]
[325339239,1714743054287,-500.0,0.00043835,30]
[325339241,1714743054297,-1629.25,0.00043835,30]
[325339243,1714743054307,-500.0,0.00043835,30]
[325339245,1714743054317,-609.35,0.00043835,30]
[325339247,1714743054328,-833.61,0.00043835,30]
[325339249,1714743054338,-501.47384401,0.00043835,30]
[325339251,1714743054348,-500.0,0.00043835,30]
[325339253,1714743054357,-500.0,0.00043835,30]
[325339255,1714743054367,-500.0,0.00043835,30]
[325339257,1714743054376,-500.0,0.00043835,30]
[325339259,1714743054386,-500.24689063,0.00043835,30]
[325339261,1714743054395,-881.64,0.00043835,30]
[325339263,1714743054404,-500.0,0.00043835,30]
[325339265,1714743054414,-855.68,0.00043835,30]
[325339267,1714743054423,-1442.53,0.00043835,30]
[325339269,1714743054435,-734.83,0.00043835,30]
[325339271,1714743054444,-500.0,0.00043835,30]
[325339274,1714743054454,-500.0,0.00043835,30]
[325339276,1714743054464,-510.50371449,0.00043835,30]
[325339278,1714743054474,-500.0,0.00043835,30]
[325339280,1714743054484,-500.0,0.00043835,30]
[325339282,1714743054493,-500.0,0.00043835,30]
[325339284,1714743054503,-500.0,0.00043835,30]
[325339319,1714743054831,-288.32280991,0.00043835,30]
[325339321,1714743054841,-500.0,0.00043835,30]
[325339323,1714743054851,-1740.49,0.00043835,30]
[325339325,1714743054861,-500.0,0.00043835,30]
[325339327,1714743054870,-500.0,0.00043835,30]
[325339329,1714743054880,-1461.2,0.00043835,30]
[325339331,1714743054889,-542.27,0.00043835,30]
[325339333,1714743054898,-970.81,0.00043835,30]
[325339335,1714743054908,-500.0,0.00043835,30]
[325339337,1714743054917,-952.2,0.00043835,30]
[325339339,1714743054928,-500.0,0.00043835,30]
[325339341,1714743054938,-500.0,0.00043835,30]
[325339343,1714743054947,-614.39,0.00043835,30]
[325339345,1714743054956,-502.26798045,0.00043835,30]
[325339347,1714743054966,-500.0,0.00043835,30]
[325339348,1714743054975,-921.48,0.00043835,30]
[325339350,1714743054985,-500.0,0.00043835,30]
[325339353,1714743054995,-649.65,0.00043835,30]
[325339355,1714743055004,-500.0,0.00043835,2]
[325339357,1714743055014,-694.22,0.00043835,30]
[325339358,1714743055024,-500.0,0.00043835,30]
[325339361,1714743055034,-500.0,0.00043835,30]
[325339363,1714743055043,-500.0,0.00043835,30]
[325339365,1714743055053,-500.0,0.00043835,2]
[325339367,1714743055063,-737.17,0.00043835,30]
[325339369,1714743055072,-500.0,0.00043835,30]
[325339371,1714743055082,-500.0,0.00043835,30]
[325339372,1714743055091,-500.0,0.00043835,30]
[325339375,1714743055101,-505.57554435,0.00043835,30]
[325339377,1714743055110,-879.76,0.00043835,30]
[325339378,1714743055120,-500.0,0.00043835,30]
[325339381,1714743055129,-1595.59,0.00043835,30]
[325339383,1714743055140,-500.0,0.00043835,30]
[325339384,1714743055149,-519.25,0.00043835,30]
[325339387,1714743055159,-2019.5,0.00043835,30]
[325339388,1714743055169,-901.21,0.00043835,30]
[325339390,1714743055179,-1227.12,0.00043835,30]
[325339392,1714743055189,-500.0,0.00043835,30]
[325339395,1714743055199,-368.27356651,0.00043835,30]
[325339397,1714743055210,-500.0,0.00043835,30]
[325339398,1714743055225,-500.0,0.00043835,30]
[325339401,1714743055235,-500.0,0.00043835,30]
[325339402,1714743055244,-500.0,0.00043835,30]
[325339405,1714743055255,-500.0,0.00043835,30]